fUSD/lending_fUSD_20241225
["ID","MTS","AMOUNT","RATE_DAILY","PERIOD"]
[346661971,1735159843454,-500.0,0.00012525,2]
[346661972,1735159843463,-151.0,0.00012525,2]
[346661973,1735159843473,-500.0,0.00012525,2]
[346661974,1735159843482,-500.0,0.00012525,2]
[346661975,1735159843492,-500.0,0.00012525,2]
[346661976,1735159843501,-500.0,0.00012525,2]
[346661977,1735159843510,-500.0,0.00012525,2]
[346661978,1735159843519,-500.0,0.00012525,2]
[346661979,1735159843529,-500.0,0.00012525,2]
[346661980,1735159843538,-500.0,0.00012525,2]
[346661981,1735159843547,-500.0,0.00012525,2]
[346661982,1735159843556,-500.0,0.00012525,2]
[346661983,1735159843566,-500.0,0.00012525,2]
[346661984,1735159843576,-500.0,0.00012525,2]
[346661985,1735159843585,-500.0,0.00012525,2]
[346661986,1735159843595,-500.0,0.00012525,2]
[346661987,1735159843604,-500.0,0.00012525,2]
[346661988,1735159843614,-500.0,0.00012525,2]
[346661989,1735159843623,-500.0,0.00012525,2]
[346661990,1735159843633,-500.0,0.00012525,2]
[346661991,1735159843643,-500.0,0.00012525,2]
[346661992,1735159843652,-500.0,0.00012525,2]
[346661993,1735159843661,-500.0,0.00012525,2]
[346661994,1735159843671,-151.0,0.00012525,2]
[346661995,1735159843680,-500.0,0.00012525,2]
[346661996,1735159843690,-500.0,0.00012525,2]
[346661997,1735159843699,-500.0,0.00012525,2]
[346661998,1735159843708,-616.8,0.00012525,2]
[346661999,1735159843718,-500.0,0.00012525,2]
[346662000,1735159843728,-500.0,0.00012525,2]
[346662001,1735159843737,-500.0,0.00012525,2]
[346662002,1735159843746,-500.0,0.00012525,2]
[346662003,1735159843756,-150.0,0.00012525,2]
[346662004,1735159843766,-1139.28,0.00012525,2]
[346662005,1735159843775,-500.0,0.00012525,2]
[346662006,1735159843785,-500.0,0.00012525,2]
[346662007,1735159843794,-500.0,0.00012525,2]
[346662008,1735159843803,-500.0,0.00012525,2]
[346662009,1735159843813,-500.0,0.00012525,2]
[346662010,1735159843996,-500.0,0.00012525,2]
[346662011,1735159844005,-500.0,0.00012525,2]
[346662012,1735159844015,-500.0,0.00012525,2]
[346662014,1735159844025,-500.0,0.00012525,2]
[346662016,1735159844034,-500.0,0.00012525,2]
[346662018,1735159844044,-500.0,0.00012525,2]
[346662019,1735159844053,-500.0,0.00012525,2]
[346662020,1735159844063,-500.0,0.00012525,2]
[346662021,1735159844072,-500.0,0.00012525,2]
[346662022,1735159844082,-500.0,0.00012525,2]
[346662023,1735159844092,-500.0,0.00012525,2]
[346662024,1735159844101,-500.0,0.00012525,2]
[346662025,1735159844111,-500.0,0.00012525,2]
[346662026,1735159844120,-500.0,0.00012525,2]
[346662027,1735159844129,-807.82,0.00012525,2]
[346662028,1735159844139,-618.67,0.00012525,2]
[346662029,1735159844148,-500.0,0.00012525,2]
[346662030,1735159844158,-500.0,0.00012525,2]
[346662031,1735159844168,-643.36,0.00012525,2]
[346662032,1735159844177,-500.0,0.00012525,2]
[346662033,1735159844188,-865.04,0.00012525,2]
[346662034,1735159844198,-500.0,0.00012525,2]
[346662035,1735159844207,-339.47651481,0.00012525,2]
[346662036,1735159844217,-500.0,0.00012525,2]
[346662037,1735159844227,-500.0,0.00012525,2]
[346662038,1735159844237,-500.0,0.00012525,2]
[346662039,1735159844247,-500.0,0.00012525,2]
[346662040,1735159844257,-500.0,0.00012525,2]
[346662041,1735159844267,-500.0,0.00012525,2]
[346662042,1735159844282,-500.0,0.00012525,2]
[346662043,1735159844292,-500.0,0.00012525,2]
[346662044,1735159844302,-772.49,0.00012525,2]
[346662045,1735159844312,-500.0,0.00012525,2]
[346662046,1735159844322,-500.0,0.00012525,2]
[346662047,1735159844332,-500.0,0.00012525,2]
[346662048,1735159844342,-500.0,0.00012525,2]
[346662049,1735159844353,-500.0,0.00012525,2]
[346662050,1735159844363,-151.0,0.00012525,2]
[346662051,1735159844372,-151.0,0.00012525,2]
[346662052,1735159844381,-151.0,0.00012525,2]
[346662053,1735159844390,-151.0,0.00012525,2]
[346662054,1735159844399,-500.0,0.00012525,2]
[346662055,1735159844409,-500.0,0.00012525,2]
[346662056,1735159844418,-500.0,0.00012525,2]
[346662057,1735159844427,-151.0,0.00012525,2]
[346662058,1735159844436,-500.0,0.00012525,2]
[346662059,1735159844446,-500.0,0.00012525,2]
[346662060,1735159844455,-318.255589,0.00012525,2]
[346662061,1735159844465,-500.0,0.00012525,2]
[346662062,1735159844474,-500.0,0.00012525,2]
[346662063,1735159844484,-152.0,0.00012525,2]
[346662064,1735159844494,-318.255589,0.00012525,2]
[346662065,1735159844504,-500.0,0.00012525,2]
[346662066,1735159844514,-151.0,0.00012525,2]
[346662067,1735159844523,-500.0,0.00012525,2]
[346662068,1735159844535,-1082.94,0.00012525,2]
[346662069,1735159844545,-500.0,0.00012525,2]
[346662070,1735159844554,-151.0,0.00012525,2]
[346662071,1735159844564,-151.0,0.00012525,2]
[346662072,1735159844574,-705.79,0.00012525,2]
[346662073,1735159844584,-151.0,0.00012525,2]
[346662074,1735159844594,-151.0,0.00012525,2]
[346662075,1735159844604,-500.0,0.00012525,2]
[346662076,1735159844614,-151.0,0.00012525,2]
[346662077,1735159844624,-151.0,0.00012525,2]
[346662078,1735159844634,-719.16,0.00012525,2]
[346662079,1735159844643,-151.0,0.00012525,2]
[346662080,1735159844653,-151.0,0.00012525,2]
[346662081,1735159844663,-151.0,0.00012525,2]
[346662082,1735159844672,-151.0,0.00012525,2]
[346662083,1735159844682,-183.53151,0.00012525,2]
[346662084,1735159844691,-183.53151,0.00012525,2]
[346662085,1735159844700,-500.0,0.00012525,2]
[346662086,1735159844710,-183.53151,0.00012525,2]
[346662087,1735159844719,-183.53151,0.00012525,2]
[346662088,1735159844728,-500.0,0.00012525,2]
[346662089,1735159844738,-500.0,0.00012525,2]
[346662090,1735159844747,-151.0,0.00012525,2]
[346662091,1735159844756,-151.0,0.00012525,2]
[346662092,1735159844765,-151.0,0.00012525,2]
[346662093,1735159844774,-151.0,0.00012525,2]
[346662094,1735159844784,-500.0,0.00012525,2]
[346662095,1735159844793,-500.0,0.00012525,2]
[346662096,1735159844802,-643.37,0.00012525,2]
[346662097,1735159844811,-151.0,0.00012525,2]
[346662098,1735159844821,-151.0,0.00012525,2]
[346662099,1735159844830,-172.725395,0.00012525,2]
[346662100,1735159844840,-172.725395,0.00012525,2]
[346662101,1735159844849,-151.0,0.00012525,2]
[346662102,1735159844858,-160.045859,0.00012525,2]
[346662103,1735159844868,-172.725395,0.00012525,2]
[346662104,1735159844877,-500.0,0.00012525,2]
[346662105,1735159844886,-172.725395,0.00012525,2]
[346662106,1735159844896,-151.0,0.00012525,2]
[346662107,1735159844906,-151.0,0.00012525,2]
[346662108,1735159844915,-156.182821,0.00012525,2]
[346662109,1735159844924,-500.0,0.00012525,2]
[346662110,1735159844933,-500.0,0.00012525,2]
[346662111,1735159844943,-500.0,0.00012525,2]
[346662112,1735159844952,-151.0,0.00012525,2]
[346662113,1735159844961,-151.0,0.00012525,2]
[346662114,1735159844971,-151.0,0.00012525,2]
[346662115,1735159844982,-500.0,0.00012526,2]
[346662116,1735159844991,-276.898154,0.00012526,2]
[346662117,1735159845000,-276.898154,0.00012526,2]
[346662118,1735159845010,-6929.57425249,0.0001253,2]
[346662119,1735159845020,-14638.26385592,0.00012531,2]
[346662120,1735159845029,-151.0,0.00012531,2]
[346662121,1735159845038,-151.0,0.00012531,2]
[346662122,1735159845047,-151.0,0.00012531,2]
[346662123,1735159845057,-172.725395,0.00012531,2]
[346662124,1735159845067,-172.725395,0.00012531,2]
[346662125,1735159845076,-151.0,0.00012558,2]
[346662126,1735159845086,-151.0,0.00012558,2]
[346662127,1735159845095,-151.0,0.00012558,2]
[346662128,1735159845105,-353.0,0.0001256,2]
[346662129,1735159845115,-225.0,0.0001256,2]
[346662130,1735159845124,-6929.57425249,0.00012583,2]
[346662131,1735159845134,-151.0,0.00012583,2]
[346662132,1735159845143,-151.0,0.00012583,2]
[346662135,1735159845153,-151.0,0.00012583,2]
[346662137,1735159845163,-14638.26385592,0.00012583,2]
[346662139,1735159845173,-151.0,0.00012607,2]
[346662141,1735159845183,-151.0,0.00012607,2]
[346662143,1735159845192,-151.0,0.00012607,2]
[346662145,1735159845201,-318.255589,0.00012607,2]
[346662146,1735159845211,-318.255589,0.00012607,2]
[346662147,1735159845220,-220.473602,0.00012607,2]
[346662148,1735159845229,-6929.57425249,0.00012636,2]
[346662149,1735159845238,-181.19678,0.00012636,2]
[346662150,1735159845247,-151.0,0.00012636,2]
[346662152,1735159845257,-151.0,0.00012636,2]
[346662153,1735159845267,-151.0,0.00012636,2]
[346662154,1735159845280,-183.53151,0.00012636,2]
[346662155,1735159845290,-183.53151,0.00012636,2]
[346662156,1735159845300,-14638.26385592,0.00012636,2]
[346662157,1735159845310,-192.518823,0.00012656,2]
[346662158,1735159845319,-192.518823,0.00012656,2]
[346662159,1735159845330,-264.368904,0.00012656,2]
[346662160,1735159845339,-151.0,0.00012656,2]
[346662161,1735159845349,-151.0,0.00012656,2]
[346662162,1735159845360,-151.0,0.00012656,2]
[346662163,1735159845370,-6929.57425249,0.00012688,2]
[346662164,1735159845380,-14638.26385592,0.00012689,2]
[346662165,1735159845389,-276.3613334,0.00012698,2]
[346662166,1735159845399,-151.0,0.00012741,2]
[346662167,1735159845409,-6929.57425249,0.00012741,2]
[346662168,1735159845418,-14638.26385592,0.00012742,2]
[346662169,1735159845428,-276.898154,0.00012742,2]
[346662170,1735159845437,-276.898154,0.00012742,2]
[346662171,1735159845447,-424.50245456,0.00012773,2]
[346662172,1735159845456,-6929.57425249,0.00012794,2]
[346662173,1735159845465,-14638.26385592,0.00012794,2]
[346662174,1735159845474,-1139.97,0.00012797,2]
[346662175,1735159845484,-910.01,0.00012797,2]
[346662176,1735159845493,-777.48,0.00012797,2]
[346662177,1735159845502,-182.6542637,0.00012797,2]
[346662178,1735159845512,-1736.65,0.00012797,2]
[346662179,1735159845521,-500.0,0.00012797,2]
[346662180,1735159845530,-500.0,0.00012797,2]
[346662181,1735159845540,-2055.86,0.00012797,2]
[346662182,1735159845549,-2614.96,0.00012797,2]
[346662183,1735159845559,-1414.67,0.00012797,2]
[346662184,1735159845569,-500.0,0.00012797,2]
[346662185,1735159845578,-8006.19,0.00012797,2]
[346662186,1735159845588,-1525.9,0.00012797,2]
[346662187,1735159845597,-2283.27,0.00012797,2]
[346662188,1735159845607,-2723.44,0.00012797,2]
[346662189,1735159845616,-274.259404,0.00012797,2]
[346662190,1735159845625,-151.0,0.00012797,2]
[346662191,1735159845635,-3376.81,0.00012797,2]
[346662192,1735159845646,-1371.18,0.00012797,2]
[346662193,1735159845656,-1695.52,0.00012797,2]
[346662194,1735159845665,-1162.03,0.00012797,2]
[346662195,1735159845675,-151.0,0.00012797,2]
[346662196,1735159845685,-172.725395,0.00012797,2]
[346662197,1735159845695,-172.725395,0.00012797,2]
[346662198,1735159845705,-3006.38,0.00012797,2]
[346662199,1735159845715,-10510.33,0.00012797,2]
[346662201,1735159845724,-1577.8,0.00012797,2]
[346662203,1735159845734,-500.0,0.00012797,2]
[346662205,1735159845742,-1145.35,0.00012797,2]
[346662207,1735159845752,-1172.38,0.00012797,2]
[346662209,1735159845761,-500.0,0.00012797,2]
[346662211,1735159845771,-815.15,0.00012797,2]
[346662213,1735159845780,-500.0,0.00012797,2]
[346662215,1735159845789,-500.0,0.00012797,2]
[346662217,1735159845798,-500.0,0.00012797,2]
[346662219,1735159845807,-500.0,0.00012797,2]
[346662221,1735159845816,-324.48090025,0.00012797,2]
[346662223,1735159845825,-526.72,0.00012797,2]
[346662224,1735159845835,-500.0,0.00012797,2]
[346662225,1735159845844,-500.0,0.00012797,2]
[346662226,1735159845853,-500.0,0.00012798,2]
[346662227,1735159845863,-500.0,0.00012798,2]
[346662228,1735159845871,-500.0,0.00012798,2]
[346662229,1735159845881,-500.0,0.00012798,2]
[346662230,1735159845891,-500.0,0.00012798,2]
[346662231,1735159845901,-500.0,0.00012798,2]
[346662232,1735159845910,-529.52,0.00012798,2]
[346662233,1735159845920,-500.0,0.00012798,2]
[346662235,1735159845930,-542.9,0.00012798,2]
[346662237,1735159845939,-500.0,0.00012798,2]
[346662239,1735159845948,-583.45,0.00012798,2]
[346662241,1735159845957,-532.1,0.00012798,2]
[346662243,1735159845966,-500.0,0.00012798,2]
[346662244,1735159845975,-500.0,0.00012798,2]
[346662247,1735159845984,-500.0,0.00012798,2]
[346662248,1735159845994,-500.0,0.00012798,2]
[346662250,1735159846003,-500.0,0.00012798,2]
[346662253,1735159846012,-500.0,0.00012798,2]
[346662255,1735159846022,-500.0,0.00012798,2]
[346662256,1735159846031,-500.0,0.00012798,2]
[346662258,1735159846041,-157.492866,0.00012798,2]
[346662260,1735159846050,-500.0,0.00012798,2]
[346662263,1735159846060,-500.0,0.00012798,2]
[346662265,1735159846069,-500.0,0.00012798,2]
[346662266,1735159846078,-501.9,0.00012798,2]
[346662269,1735159846088,-500.0,0.00012798,2]
[346662271,1735159846099,-500.0,0.00012798,2]
[346662273,1735159846108,-151.0,0.00012798,2]
[346662275,1735159846117,-500.0,0.00012798,2]
[346662277,1735159846126,-529.8,0.00012798,2]
[346662279,1735159846136,-500.0,0.00012798,2]
[346662280,1735159846147,-151.0,0.00012798,2]
[346662282,1735159846157,-523.48,0.00012798,2]
[346662284,1735159846167,-454.19928918,0.00012798,2]
[346662287,1735159846177,-500.0,0.00012798,2]
[346662288,1735159846187,-500.0,0.00012798,2]
[346662291,1735159846196,-500.0,0.00012798,2]
[346662292,1735159846206,-543.21,0.00012798,2]
[346662295,1735159846215,-500.0,0.00012798,2]
[346662297,1735159846225,-854.758158,0.00012798,2]
[346662299,1735159846234,-500.0,0.00012798,2]
[346662300,1735159846244,-1051.978082,0.00012798,2]
[346662303,1735159846253,-645.8,0.00012798,2]
[346662304,1735159846263,-500.0,0.00012798,2]
[346662306,1735159846275,-500.0,0.00012798,2]
[346662308,1735159846286,-500.0,0.00012798,2]
[346662310,1735159846295,-500.0,0.00012798,2]
[346662312,1735159846304,-604.62,0.00012798,2]
[346662314,1735159846315,-500.0,0.00012798,2]
[346662316,1735159846334,-500.0,0.00012798,2]
[346662318,1735159846344,-500.0,0.00012798,2]
[346662320,1735159846355,-500.0,0.00012798,2]
[346662322,1735159846364,-500.0,0.00012798,2]
[346662324,1735159846374,-500.0,0.00012798,2]
[346662326,1735159846382,-566.45,0.00012798,2]
[346662328,1735159846392,-500.0,0.00012798,2]
[346662330,1735159846401,-500.0,0.00012798,2]
[346662332,1735159846410,-500.0,0.00012798,2]
[346662334,1735159846419,-500.0,0.00012798,2]
[346662336,1735159846428,-650.52,0.00012798,2]
[346662338,1735159846438,-500.0,0.00012798,2]
[346662340,1735159846447,-500.0,0.00012798,2]
[346662342,1735159846457,-500.0,0.00012798,2]
[346662344,1735159846466,-500.0,0.00012798,2]
[346662346,1735159846476,-500.0,0.00012798,2]
[346662348,1735159846485,-574.18,0.00012798,2]
[346662350,1735159846495,-500.0,0.00012798,2]
[346662352,1735159846504,-500.0,0.00012798,2]
[346662354,1735159846513,-500.0,0.00012798,2]
[346662356,1735159846522,-500.0,0.00012798,2]
[346662358,1735159846531,-500.0,0.00012798,2]
[346662360,1735159846541,-192.518823,0.00012798,2]
[346662362,1735159846550,-500.0,0.00012798,2]
[346662364,1735159846559,-192.518823,0.00012798,2]
[346662366,1735159846571,-500.0,0.00012798,2]
[346662368,1735159846581,-500.0,0.00012798,2]
[346662370,1735159846590,-500.0,0.00012798,2]
[346662372,1735159846599,-500.0,0.00012798,2]
[346662374,1735159846609,-500.0,0.00012798,2]
[346662376,1735159846618,-500.0,0.00012798,2]
[346662378,1735159846628,-500.0,0.00012798,2]
[346662380,1735159846637,-151.0,0.00012798,2]
[346662382,1735159846647,-500.0,0.00012798,2]
[346662384,1735159846656,-500.0,0.00012798,2]
[346662386,1735159846666,-777.79,0.00012798,2]
[346662388,1735159846675,-500.0,0.00012798,2]
[346662390,1735159846684,-500.0,0.00012798,2]
[346662392,1735159846693,-500.0,0.00012798,2]
[346662394,1735159846703,-500.0,0.00012798,2]
[346662396,1735159846712,-500.0,0.00012798,2]
[346662398,1735159846722,-500.0,0.00012798,2]
[346662400,1735159846731,-500.0,0.00012798,2]
[346662402,1735159846740,-500.0,0.00012798,2]
[346662404,1735159846749,-500.0,0.00012798,2]
[346662406,1735159846758,-500.0,0.00012798,2]
[346662408,1735159846767,-500.0,0.00012798,2]
[346662410,1735159846776,-500.0,0.00012798,2]
[346662412,1735159846785,-500.0,0.00012798,2]
[346662414,1735159846796,-500.0,0.00012798,2]
[346662416,1735159846805,-500.0,0.00012798,2]
[346662418,1735159846814,-813.48,0.00012798,2]
[346662420,1735159846823,-500.0,0.00012798,2]
[346662422,1735159846832,-500.0,0.00012798,2]
[346662424,1735159846841,-500.0,0.00012798,2]
[346662426,1735159846851,-500.0,0.00012798,2]
[346662428,1735159846860,-500.0,0.00012798,2]
[346662430,1735159846869,-565.79,0.00012798,2]
[346662432,1735159846879,-500.0,0.00012798,2]
[346662434,1735159846888,-500.0,0.00012798,2]
[346662436,1735159846898,-500.0,0.00012798,2]
[346662438,1735159846908,-500.0,0.00012798,2]
[346662440,1735159846917,-500.0,0.00012798,2]
[346662442,1735159846926,-500.0,0.00012798,2]
[346662444,1735159846935,-500.0,0.00012798,2]
[346662446,1735159846946,-500.0,0.00012798,2]
[346662448,1735159846955,-500.0,0.00012798,2]
[346662450,1735159846965,-500.0,0.00012798,2]
[346662452,1735159846974,-500.0,0.00012798,2]
[346662454,1735159846983,-500.0,0.00012798,2]
[346662455,1735159846993,-500.0,0.00012798,2]
[346662457,1735159847002,-500.0,0.00012798,2]
[346662459,1735159847011,-798.7,0.00012798,2]
[346662461,1735159847021,-500.0,0.00012798,2]
[346662463,1735159847030,-500.0,0.00012798,2]
[346662465,1735159847039,-500.0,0.00012798,2]
[346662467,1735159847049,-500.0,0.00012798,2]
[346662469,1735159847058,-293.38,0.00012798,2]
[346662471,1735159847068,-519.48,0.00012798,2]
[346662473,1735159847077,-500.0,0.00012798,2]
[346662475,1735159847086,-500.0,0.00012798,2]
[346662477,1735159847095,-500.0,0.00012798,2]
[346662479,1735159847104,-500.0,0.00012798,2]
[346662481,1735159847114,-500.0,0.00012798,2]
[346662483,1735159847123,-500.0,0.00012798,2]
[346662485,1735159847133,-2226.85,0.00012798,2]
[346662487,1735159847142,-577.79,0.00012798,2]
[346662489,1735159847151,-500.0,0.00012798,2]
[346662491,1735159847160,-500.0,0.00012798,2]
[346662493,1735159847169,-500.0,0.00012798,2]
[346662512,1735159847324,-693.17,0.00012798,2]
[346662515,1735159847353,-500.0,0.00012798,2]
[346662516,1735159847364,-500.0,0.00012798,2]
[346662518,1735159847374,-500.0,0.00012798,2]
[346662520,1735159847383,-500.0,0.00012798,2]
[346662522,1735159847392,-500.0,0.00012798,2]
[346662524,1735159847401,-500.0,0.00012798,2]
[346662526,1735159847410,-500.0,0.00012798,2]
[346662528,1735159847418,-500.0,0.00012798,2]
[346662529,1735159847427,-685.84,0.00012798,2]
[346662530,1735159847436,-500.0,0.00012798,2]
[346662531,1735159847445,-688.07,0.00012798,2]
[346662532,1735159847454,-500.0,0.00012798,2]
[346662533,1735159847463,-500.0,0.00012798,2]
[346662534,1735159847472,-500.0,0.00012798,2]
[346662535,1735159847481,-1140.59,0.00012798,2]
[346662536,1735159847490,-500.0,0.00012798,2]
[346662537,1735159847499,-500.0,0.00012798,2]
[346662538,1735159847509,-4167.05,0.00012798,2]
[346662539,1735159847518,-500.0,0.00012798,2]
[346662540,1735159847527,-500.0,0.00012798,2]
[346662542,1735159847536,-500.0,0.00012798,2]
[346662544,1735159847545,-955.65,0.00012798,2]
[346662546,1735159847554,-500.0,0.00012798,2]
[346662548,1735159847563,-689.24,0.00012798,2]
[346662550,1735159847572,-500.0,0.00012798,2]
[346662552,1735159847582,-500.0,0.00012798,2]
[346662554,1735159847591,-1845.55,0.00012798,2]
[346662556,1735159847600,-500.0,0.00012798,2]
[346662558,1735159847609,-500.0,0.00012798,2]
[346662560,1735159847618,-500.0,0.00012798,2]
[346662562,1735159847627,-500.0,0.00012798,2]
[346662564,1735159847637,-744.24,0.00012798,2]
[346662566,1735159847647,-500.0,0.00012798,2]
[346662568,1735159847657,-500.0,0.00012798,2]
[346662570,1735159847666,-1496.48,0.00012798,2]
[346662572,1735159847675,-500.0,0.00012798,2]
[346662574,1735159847686,-500.0,0.00012798,2]
[346662576,1735159847695,-500.0,0.00012798,2]
[346662578,1735159847705,-1361.71,0.00012798,2]
[346662580,1735159847715,-500.0,0.00012798,2]
[346662582,1735159847724,-500.0,0.00012798,2]
[346662584,1735159847733,-1012.2,0.00012798,2]
[346662586,1735159847742,-500.0,0.00012798,2]
[346662588,1735159847751,-153.807129,0.00012798,2]
[346662590,1735159847761,-3270.66,0.00012798,2]
[346662592,1735159847771,-500.0,0.00012798,2]
[346662594,1735159847780,-500.0,0.00012798,2]
[346662596,1735159847789,-500.0,0.00012798,2]
[346662598,1735159847799,-798.99,0.00012798,2]
[346662600,1735159847808,-2936.89,0.00012798,2]
[346662602,1735159847817,-500.0,0.00012798,2]
[346662603,1735159847826,-15082.02,0.00012798,2]
[346662605,1735159847835,-500.0,0.00012798,2]
[346662607,1735159847844,-2280.17,0.00012798,2]
[346662610,1735159847853,-500.0,0.00012798,2]
[346662612,1735159847862,-500.0,0.00012798,2]
[346662614,1735159847871,-500.0,0.00012798,2]
[346662616,1735159847880,-1263.36,0.00012798,2]
[346662617,1735159847889,-500.0,0.00012798,2]
[346662619,1735159847899,-500.0,0.00012798,2]
[346662621,1735159847907,-728.14,0.00012798,2]
[346662624,1735159847917,-500.0,0.00012798,2]
[346662626,1735159847926,-3815.21,0.00012798,2]
[346662627,1735159847935,-500.0,0.00012798,2]
[346662630,1735159847944,-1840.51,0.00012798,2]
[346662631,1735159847953,-500.0,0.00012798,2]
[346662634,1735159847963,-500.0,0.00012798,2]
[346662636,1735159847973,-1825.61,0.00012798,2]
[346662637,1735159847981,-500.0,0.00012798,2]
[346662639,1735159847991,-276.898154,0.00012798,2]
[346662641,1735159848000,-500.0,0.00012798,2]
[346662643,1735159848009,-621.52155946,0.00012798,2]
[346662645,1735159848018,-1350.88,0.00012798,2]
[346662647,1735159848027,-500.0,0.00012798,2]
[346662649,1735159848036,-276.898154,0.00012798,2]
[346662651,1735159848045,-500.0,0.00012798,2]
[346662653,1735159848054,-500.0,0.00012798,2]
[346662655,1735159848063,-1311.51,0.00012798,2]
[346662657,1735159848073,-1922.48,0.00012798,2]
[346662659,1735159848082,-3905.1,0.00012798,2]
[346662661,1735159848091,-666.95,0.00012798,2]
[346662663,1735159848100,-151.0,0.00012798,2]
[346662665,1735159848109,-151.0,0.00012798,2]
[346662667,1735159848118,-840.85,0.00012798,2]
[346662669,1735159848127,-500.0,0.00012798,2]
[346662671,1735159848136,-500.0,0.00012798,2]
[346662673,1735159848145,-151.0,0.00012798,2]
[346662675,1735159848155,-151.0,0.00012798,2]
[346662677,1735159848165,-500.0,0.00012798,2]
[346662679,1735159848175,-500.0,0.00012798,2]
[346662681,1735159848185,-500.0,0.00012798,2]
[346662683,1735159848194,-500.0,0.00012798,2]
[346662685,1735159848203,-151.0,0.00012798,2]
[346662687,1735159848214,-151.0,0.00012798,2]
[346662689,1735159848223,-500.0,0.00012798,2]
[346662691,1735159848233,-500.0,0.00012798,2]
[346662693,1735159848242,-800.83,0.00012798,2]
[346662695,1735159848251,-500.0,0.00012798,2]
[346662697,1735159848261,-807.3,0.00012798,2]
[346662699,1735159848271,-1454.57,0.00012798,2]
[346662700,1735159848284,-1190.8,0.00012798,2]
[346662701,1735159848294,-500.0,0.00012798,2]
[346662702,1735159848303,-500.0,0.00012798,2]
[346662703,1735159848313,-500.0,0.00012798,2]
[346662704,1735159848323,-647.04,0.00012798,2]
[346662705,1735159848332,-500.0,0.00012798,2]
[346662706,1735159848341,-318.255589,0.00012798,2]
[346662707,1735159848351,-318.255589,0.00012798,2]
[346662708,1735159848360,-500.0,0.00012798,2]
[346662709,1735159848370,-318.255589,0.00012798,2]
[346662711,1735159848380,-500.0,0.00012798,2]
[346662713,1735159848390,-318.255589,0.00012798,2]
[346662715,1735159848401,-1384.9,0.00012798,2]
[346662717,1735159848410,-500.0,0.00012798,2]
[346662719,1735159848419,-1696.97,0.00012798,2]
[346662721,1735159848427,-500.0,0.00012798,2]
[346662723,1735159848436,-500.0,0.00012798,2]
[346662725,1735159848446,-500.0,0.00012798,2]
[346662727,1735159848455,-500.0,0.00012798,2]
[346662729,1735159848464,-2030.56,0.00012798,2]
[346662731,1735159848473,-1755.82,0.00012798,2]
[346662733,1735159848482,-500.0,0.00012798,2]
[346662735,1735159848491,-3869.5,0.00012798,2]
[346662737,1735159848500,-1171.97,0.00012798,2]
[346662739,1735159848510,-500.0,0.00012798,2]
[346662741,1735159848519,-500.0,0.00012798,2]
[346662743,1735159848528,-500.0,0.00012798,2]
[346662745,1735159848537,-500.0,0.00012798,2]